[Event "*** Titled Tuesday Blitz"]
[Site "Chess.com"]
[Date "2018.06.05"]
[Round "2"]
[White "Korchmar_Vasiliy"]
[Black "VSERGUEI"]
[Result "1-0"]
[WhiteElo "2711"]
[BlackElo "2504"]
[TimeControl "180+2"]
[EndTime "13:23:18 PDT"]
[Termination "Korchmar_Vasiliy won by checkmate"]

1. d4 {[%clk 0:03:01.1]} 1... d5 {[%clk 0:02:59.5]} 2. Nf3 {[%clk 0:03:02.4]}
2... Nf6 {[%clk 0:02:59.8]} 3. Bf4 {[%clk 0:03:03.4]} 3... c5 {[%clk 0:03:00.5]}
4. e3 {[%clk 0:03:04.6]} 4... Nc6 {[%clk 0:03:01.3]} 5. Nbd2 {[%clk 0:03:05.4]}
5... cxd4 {[%clk 0:03:00.2]} 6. exd4 {[%clk 0:03:06.2]} 6... g6 {[%clk
0:03:01.1]} 7. h3 {[%clk 0:03:03.9]} 7... Nh5 {[%clk 0:03:01]} 8. Bh2 {[%clk
0:03:02.4]} 8... Bg7 {[%clk 0:02:53.5]} 9. c3 {[%clk 0:03:03]} 9... O-O {[%clk
0:02:53.6]} 10. Bd3 {[%clk 0:03:04.2]} 10... f5 {[%clk 0:02:45.6]} 11. O-O
{[%clk 0:02:47]} 11... f4 {[%clk 0:02:46.2]} 12. Re1 {[%clk 0:02:48.4]} 12...
Qd6 {[%clk 0:02:45.8]} 13. b4 {[%clk 0:02:40.2]} 13... a6 {[%clk 0:02:42.5]} 14.
Nb3 {[%clk 0:02:34.2]} 14... e5 {[%clk 0:02:33.7]} 15. dxe5 {[%clk 0:02:34.6]}
15... Nxe5 {[%clk 0:02:33.7]} 16. Nxe5 {[%clk 0:02:29.5]} 16... Bxe5 {[%clk
0:02:33.3]} 17. Nd4 {[%clk 0:02:25]} 17... Bxd4 {[%clk 0:02:33.4]} 18. cxd4
{[%clk 0:02:25.7]} 18... Qxb4 {[%clk 0:02:34.2]} 19. Qf3 {[%clk 0:01:59.4]}
19... Qxd4 {[%clk 0:02:31]} 20. Rad1 {[%clk 0:02:00.5]} 20... Qc5 {[%clk
0:02:27.5]} 21. Re5 {[%clk 0:01:57.8]} 21... Rd8 {[%clk 0:02:10.2]} 22. Rde1
{[%clk 0:01:53.1]} 22... Qf8 {[%clk 0:01:57.8]} 23. Rxh5 {[%clk 0:01:18.5]}
23... gxh5 {[%clk 0:01:54.6]} 24. Qxh5 {[%clk 0:01:20.4]} 24... Qg7 {[%clk
0:01:20.7]} 25. Re8+ {[%clk 0:01:21.2]} 25... Rxe8 {[%clk 0:01:20.7]} 26. Qxe8+
{[%clk 0:01:23.1]} 26... Qf8 {[%clk 0:01:21.5]} 27. Bxh7+ {[%clk 0:01:24.9]}
27... Kg7 {[%clk 0:01:22.6]} 28. Qg6+ {[%clk 0:01:18.5]} 28... Kh8 {[%clk
0:01:23.3]} 29. Bxf4 {[%clk 0:01:20.4]} 29... Qg7 {[%clk 0:00:58.9]} 30. Be5
{[%clk 0:01:20.4]} 30... Qxe5 {[%clk 0:00:07.1]} 31. Qg8# {[%clk 0:01:20.3]} 1-0

[Event "*** Titled Tuesday Blitz"]
[Site "Chess.com"]
[Date "2018.06.05"]
[Round "2"]
[White "11kevin"]
[Black "TBergh98"]
[Result "1-0"]
[WhiteElo "2225"]
[BlackElo "2206"]
[TimeControl "180+2"]
[EndTime "13:23:18 PDT"]
[Termination "11kevin won by resignation"]

1. Nf3 {[%clk 0:03:01.9]} 1... Nf6 {[%clk 0:03:00.8]} 2. d4 {[%clk 0:03:02.7]}
2... g6 {[%clk 0:03:02]} 3. c4 {[%clk 0:03:03.3]} 3... Bg7 {[%clk 0:03:03.3]} 4.
Nc3 {[%clk 0:03:04.9]} 4... d5 {[%clk 0:03:04.5]} 5. cxd5 {[%clk 0:03:05.7]}
5... Nxd5 {[%clk 0:03:06.4]} 6. e4 {[%clk 0:03:07]} 6... Nxc3 {[%clk 0:03:06.8]}
7. bxc3 {[%clk 0:03:08.7]} 7... c5 {[%clk 0:03:08.7]} 8. Be3 {[%clk 0:03:09.8]}
8... Nc6 {[%clk 0:03:07.1]} 9. Rc1 {[%clk 0:03:09.3]} 9... Qa5 {[%clk
0:03:02.4]} 10. d5 {[%clk 0:03:10.1]} 10... Ne5 {[%clk 0:02:45.3]} 11. Nxe5
{[%clk 0:03:10.7]} 11... Bxe5 {[%clk 0:02:47.2]} 12. Qd2 {[%clk 0:03:12]} 12...
O-O {[%clk 0:02:46]} 13. f4 {[%clk 0:03:12.8]} 13... Bg7 {[%clk 0:02:43.7]} 14.
c4 {[%clk 0:03:10.8]} 14... Qc7 {[%clk 0:02:40.8]} 15. e5 {[%clk 0:03:10.2]}
15... Rd8 {[%clk 0:02:36.8]} 16. Be2 {[%clk 0:03:09.6]} 16... f6 {[%clk
0:02:24.9]} 17. O-O {[%clk 0:02:38.8]} 17... fxe5 {[%clk 0:02:20.4]} 18. fxe5
{[%clk 0:02:40.3]} 18... Bxe5 {[%clk 0:02:17.6]} 19. Bf4 {[%clk 0:02:41.1]}
19... Bf5 {[%clk 0:02:10.8]} 20. Kh1 {[%clk 0:02:34.1]} 20... Rf8 {[%clk
0:02:07.1]} 21. Qe3 {[%clk 0:02:21.4]} 21... Bxf4 {[%clk 0:02:01.1]} 22. Rxf4
{[%clk 0:02:21.3]} 22... Rae8 {[%clk 0:01:52.2]} 23. Rcf1 {[%clk 0:02:09.9]}
23... e6 {[%clk 0:01:39.7]} 24. Qg3 {[%clk 0:01:54.4]} 24... Qg7 {[%clk
0:01:26.1]} 25. dxe6 {[%clk 0:01:24.9]} 25... Bxe6 {[%clk 0:01:03.8]} 26. h3
{[%clk 0:01:13.6]} 26... Bf5 {[%clk 0:00:41.1]} 27. Bf3 {[%clk 0:01:11.9]} 27...
b6 {[%clk 0:00:34.8]} 28. Bd5+ {[%clk 0:01:12.4]} 28... Kh8 {[%clk 0:00:36]} 29.
R4f2 {[%clk 0:01:08.6]} 29... Bc8 {[%clk 0:00:26.8]} 30. Rxf8+ {[%clk
0:01:03.2]} 30... Rxf8 {[%clk 0:00:28.7]} 31. Rxf8+ {[%clk 0:01:03.1]} 31...
Qxf8 {[%clk 0:00:30.6]} 32. Qe5+ {[%clk 0:01:03.3]} 1-0

[Event "*** Titled Tuesday Blitz"]
[Site "Chess.com"]
[Date "2018.06.05"]
[Round "2"]
[White "Muguet7"]
[Black "Ar4uha"]
[Result "0-1"]
[WhiteElo "2316"]
[BlackElo "2579"]
[TimeControl "180+2"]
[EndTime "13:23:23 PDT"]
[Termination "Ar4uha won by resignation"]

1. d4 {[%clk 0:03:01.9]} 1... Nf6 {[%clk 0:02:56.7]} 2. c4 {[%clk 0:03:02.4]}
2... e6 {[%clk 0:02:57.7]} 3. g3 {[%clk 0:03:02.4]} 3... d5 {[%clk 0:02:57]} 4.
Bg2 {[%clk 0:03:02.9]} 4... dxc4 {[%clk 0:02:58.2]} 5. Nf3 {[%clk 0:03:03.4]}
5... Nbd7 {[%clk 0:02:59.2]} 6. O-O {[%clk 0:03:03.4]} 6... Rb8 {[%clk
0:03:00.1]} 7. a4 {[%clk 0:03:00.2]} 7... b6 {[%clk 0:03:00.8]} 8. Na3 {[%clk
0:02:50.2]} 8... Bxa3 {[%clk 0:02:51.8]} 9. Rxa3 {[%clk 0:02:50.4]} 9... O-O
{[%clk 0:02:51.7]} 10. Rc3 {[%clk 0:02:44.8]} 10... Ba6 {[%clk 0:02:47.3]} 11.
Re1 {[%clk 0:02:23.3]} 11... Nd5 {[%clk 0:02:42.6]} 12. Ra3 {[%clk 0:02:22.4]}
12... c5 {[%clk 0:02:42.4]} 13. e4 {[%clk 0:02:15.1]} 13... Nb4 {[%clk 0:02:43]}
14. Bf4 {[%clk 0:02:15.3]} 14... Rc8 {[%clk 0:02:44.2]} 15. Bd6 {[%clk
0:02:15.5]} 15... Re8 {[%clk 0:02:43.8]} 16. e5 {[%clk 0:02:11.7]} 16... Nd3
{[%clk 0:02:40.4]} 17. Re3 {[%clk 0:02:10.3]} 17... Nxb2 {[%clk 0:02:33.9]} 18.
Qc2 {[%clk 0:02:09.6]} 18... Nd3 {[%clk 0:02:34.4]} 19. dxc5 {[%clk 0:01:52.3]}
19... N7xc5 {[%clk 0:02:36.3]} 20. Nd4 {[%clk 0:01:50.8]} 20... Nb7 {[%clk
0:01:50.3]} 21. Nc6 {[%clk 0:01:42]} 21... Qd7 {[%clk 0:01:46.7]} 22. Nxa7
{[%clk 0:01:41.4]} 22... Nxd6 {[%clk 0:01:48.3]} 23. Nxc8 {[%clk 0:01:36.1]}
23... Nxc8 {[%clk 0:01:50.2]} 24. Bc6 {[%clk 0:01:28.4]} 24... Qxc6 {[%clk
0:01:48]} 25. Rexd3 {[%clk 0:01:22.4]} 25... Bb7 {[%clk 0:01:48.5]} 26. Rf3
{[%clk 0:01:22.8]} 26... Qc5 {[%clk 0:01:41.2]} 27. Rfe3 {[%clk 0:01:22.2]}
27... Qd5 {[%clk 0:01:42.4]} 28. Rf3 {[%clk 0:01:22.4]} 28... Qxe5 {[%clk
0:01:32.7]} 29. Rfe3 {[%clk 0:01:08.5]} 29... Qd5 {[%clk 0:01:33.2]} 30. f3
{[%clk 0:01:09.7]} 30... Ne7 {[%clk 0:01:32]} 31. Rac3 {[%clk 0:01:09.8]} 31...
Nf5 {[%clk 0:01:32.7]} 32. Re4 {[%clk 0:01:06.9]} 32... Qc5+ {[%clk 0:01:32.6]}
33. Kh1 {[%clk 0:01:03.4]} 33... Bxe4 {[%clk 0:01:33]} 34. fxe4 {[%clk
0:01:04.3]} 34... Nd4 {[%clk 0:01:33.3]} 35. Qf2 {[%clk 0:01:03]} 35... e5
{[%clk 0:01:27.3]} 36. Rc1 {[%clk 0:01:00.6]} 36... c3 {[%clk 0:01:27.8]} 37.
Qe3 {[%clk 0:00:59.5]} 37... c2 {[%clk 0:01:27.3]} 38. h4 {[%clk 0:00:57.8]}
38... Rc8 {[%clk 0:01:26.1]} 39. Kh2 {[%clk 0:00:58.4]} 39... Qc4 {[%clk
0:01:24.6]} 40. Kh3 {[%clk 0:00:59.2]} 40... h6 {[%clk 0:01:23.1]} 41. Qf2
{[%clk 0:00:58.2]} 41... Ne2 {[%clk 0:01:21.7]} 0-1

[Event "*** Titled Tuesday Blitz"]
[Site "Chess.com"]
[Date "2018.06.05"]
[Round "2"]
[White "sergeikim"]
[Black "WinnerOleg"]
[Result "1-0"]
[WhiteElo "2381"]
[BlackElo "2394"]
[TimeControl "180+2"]
[EndTime "13:23:27 PDT"]
[Termination "sergeikim won by resignation"]

1. d4 {[%clk 0:03:01.9]} 1... d5 {[%clk 0:03:00.4]} 2. c4 {[%clk 0:03:02.8]}
2... c6 {[%clk 0:03:01.7]} 3. Nf3 {[%clk 0:03:03.1]} 3... Nf6 {[%clk 0:03:00.1]}
4. Qc2 {[%clk 0:03:04.2]} 4... g6 {[%clk 0:03:00]} 5. e3 {[%clk 0:03:05.2]} 5...
Bg7 {[%clk 0:03:00]} 6. Bd3 {[%clk 0:03:05.9]} 6... dxc4 {[%clk 0:02:59.1]} 7.
Qxc4 {[%clk 0:03:06.3]} 7... b5 {[%clk 0:02:57.5]} 8. Qc2 {[%clk 0:03:06.3]}
8... a6 {[%clk 0:02:52.5]} 9. O-O {[%clk 0:03:06.3]} 9... O-O {[%clk 0:02:52.8]}
10. b3 {[%clk 0:03:07]} 10... Bb7 {[%clk 0:02:51.5]} 11. Bb2 {[%clk 0:03:07.5]}
11... Nbd7 {[%clk 0:02:53.1]} 12. Nbd2 {[%clk 0:03:08.2]} 12... Rc8 {[%clk
0:02:53.3]} 13. b4 {[%clk 0:03:08.4]} 13... Nd5 {[%clk 0:02:34.8]} 14. a3 {[%clk
0:03:08.7]} 14... N7b6 {[%clk 0:02:36.4]} 15. Nb3 {[%clk 0:03:03.7]} 15... Na4
{[%clk 0:02:34.7]} 16. Nc5 {[%clk 0:03:04.2]} 16... Nxc5 {[%clk 0:02:30]} 17.
Qxc5 {[%clk 0:03:03.4]} 17... Re8 {[%clk 0:02:20.5]} 18. Rfd1 {[%clk 0:02:57.7]}
18... Nb6 {[%clk 0:02:18.5]} 19. Be4 {[%clk 0:02:48.9]} 19... Na4 {[%clk
0:02:04.8]} 20. Qc2 {[%clk 0:02:48.3]} 20... f5 {[%clk 0:01:46]} 21. Bd3 {[%clk
0:02:47.7]} 21... Nxb2 {[%clk 0:01:40.5]} 22. Qxb2 {[%clk 0:02:48.3]} 22... c5
{[%clk 0:01:28]} 23. bxc5 {[%clk 0:02:46.9]} 23... Rxc5 {[%clk 0:01:20.6]} 24.
Rac1 {[%clk 0:02:45.5]} 24... Rxc1 {[%clk 0:01:11.1]} 25. Qxc1 {[%clk
0:02:45.6]} 25... Qd6 {[%clk 0:01:09.9]} 26. Ng5 {[%clk 0:02:31.9]} 26... h6
{[%clk 0:01:01.4]} 27. Nh3 {[%clk 0:02:29.9]} 27... e5 {[%clk 0:00:49]} 28. dxe5
{[%clk 0:02:24.4]} 28... Qxe5 {[%clk 0:00:50.9]} 29. Nf4 {[%clk 0:02:17.3]}
29... Kh7 {[%clk 0:00:46.2]} 30. Qb1 {[%clk 0:02:12]} 30... Rd8 {[%clk
0:00:21.3]} 31. h4 {[%clk 0:01:58.6]} 31... Be4 {[%clk 0:00:21]} 32. Bxe4 {[%clk
0:01:55]} 32... Rxd1+ {[%clk 0:00:22.9]} 33. Qxd1 {[%clk 0:01:55.2]} 33... fxe4
{[%clk 0:00:24.4]} 34. Qd7 {[%clk 0:01:52.1]} 34... g5 {[%clk 0:00:22.4]} 35.
hxg5 {[%clk 0:01:48.8]} 35... hxg5 {[%clk 0:00:24.3]} 36. Ne6 {[%clk 0:01:48.2]}
36... Qa1+ {[%clk 0:00:25.7]} 37. Kh2 {[%clk 0:01:48.5]} 37... Qe5+ {[%clk
0:00:27.3]} 38. g3 {[%clk 0:01:49.5]} 38... Kg6 {[%clk 0:00:28.4]} 39. Qe8+
{[%clk 0:01:45.3]} 39... Kf6 {[%clk 0:00:28.2]} 40. Nxg7 {[%clk 0:01:45.4]} 1-0

[Event "*** Titled Tuesday Blitz"]
[Site "Chess.com"]
[Date "2018.06.05"]
[Round "2"]
[White "Mr_Penings"]
[Black "Martins-BR"]
[Result "0-1"]
[WhiteElo "2397"]
[BlackElo "2312"]
[TimeControl "180+2"]
[EndTime "13:23:28 PDT"]
[Termination "Martins-BR won by resignation"]

1. c4 {[%clk 0:02:59]} 1... f5 {[%clk 0:02:58.6]} 2. g3 {[%clk 0:02:59.8]} 2...
Nf6 {[%clk 0:02:58.8]} 3. Bg2 {[%clk 0:03:00.7]} 3... g6 {[%clk 0:02:59.8]} 4.
Nc3 {[%clk 0:03:01.7]} 4... Bg7 {[%clk 0:03:00.3]} 5. d3 {[%clk 0:03:03.2]} 5...
d6 {[%clk 0:03:00.3]} 6. e4 {[%clk 0:03:04.2]} 6... Nc6 {[%clk 0:03:01.2]} 7.
Nge2 {[%clk 0:03:05.4]} 7... O-O {[%clk 0:03:00.8]} 8. O-O {[%clk 0:03:06.2]}
8... e5 {[%clk 0:03:00.9]} 9. exf5 {[%clk 0:03:04.9]} 9... Bxf5 {[%clk
0:03:00.5]} 10. d4 {[%clk 0:03:04.6]} 10... exd4 {[%clk 0:02:58]} 11. Nxd4
{[%clk 0:03:06.1]} 11... Nxd4 {[%clk 0:02:57.5]} 12. Qxd4 {[%clk 0:03:07.8]}
12... c6 {[%clk 0:02:51.9]} 13. Qh4 {[%clk 0:02:40.9]} 13... Ng4 {[%clk
0:02:42.3]} 14. Bg5 {[%clk 0:01:57.8]} 14... Qc7 {[%clk 0:02:42.2]} 15. h3
{[%clk 0:01:39.9]} 15... Ne5 {[%clk 0:02:41.1]} 16. Rfd1 {[%clk 0:00:46]} 16...
h6 {[%clk 0:02:34.6]} 17. Be3 {[%clk 0:00:20.4]} 17... g5 {[%clk 0:02:33.3]} 18.
Qh5 {[%clk 0:00:20.8]} 18... Nxc4 {[%clk 0:02:27]} 19. Bd4 {[%clk 0:00:22.1]}
19... d5 {[%clk 0:02:15.5]} 20. Bxg7 {[%clk 0:00:19]} 20... Kxg7 {[%clk
0:02:12.9]} 21. b3 {[%clk 0:00:17.7]} 21... Nd6 {[%clk 0:02:08.1]} 22. Rac1
{[%clk 0:00:18.3]} 22... Qf7 {[%clk 0:02:06.3]} 23. Qe2 {[%clk 0:00:16.7]} 23...
Rae8 {[%clk 0:02:05.3]} 24. Qb2 {[%clk 0:00:17.1]} 24... Qf6 {[%clk 0:02:04]}
25. Kh2 {[%clk 0:00:18.1]} 25... Bg6 {[%clk 0:01:58.3]} 26. Rd2 {[%clk
0:00:18.2]} 26... Kh7 {[%clk 0:01:55.1]} 27. Rf1 {[%clk 0:00:15.9]} 27... Ne4
{[%clk 0:01:51.4]} 28. Nxe4 {[%clk 0:00:12.7]} 28... Bxe4 {[%clk 0:01:50.1]} 29.
Bxe4+ {[%clk 0:00:10]} 29... Rxe4 {[%clk 0:01:48.9]} 30. Qc2 {[%clk 0:00:09.1]}
30... Qg6 {[%clk 0:01:45.9]} 31. f3 {[%clk 0:00:08.9]} 31... Re3 {[%clk
0:01:42.3]} 32. Qd1 {[%clk 0:00:09.6]} 32... Rfe8 {[%clk 0:01:42]} 33. Rdf2
{[%clk 0:00:10.6]} 33... Qd3 {[%clk 0:01:39.6]} 34. Qc1 {[%clk 0:00:11]} 34...
Re2 {[%clk 0:01:39.2]} 35. Qc5 {[%clk 0:00:12]} 35... Qxf3 {[%clk 0:01:35.3]}
36. Qd6 {[%clk 0:00:03.6]} 36... Rxf2+ {[%clk 0:01:34]} 0-1

[Event "*** Titled Tuesday Blitz"]
[Site "Chess.com"]
[Date "2018.06.05"]
[Round "2"]
[White "NDePinEsPeRG"]
[Black "BrizuelaRonald"]
[Result "0-1"]
[WhiteElo "2642"]
[BlackElo "2711"]
[TimeControl "180+2"]
[EndTime "13:23:31 PDT"]
[Termination "BrizuelaRonald won by checkmate"]

1. d4 {[%clk 0:03:01.9]} 1... d5 {[%clk 0:02:58.8]} 2. Bf4 {[%clk 0:03:02]} 2...
Nf6 {[%clk 0:02:59]} 3. e3 {[%clk 0:03:02.7]} 3... e6 {[%clk 0:02:59.2]} 4. Nd2
{[%clk 0:03:02.8]} 4... c5 {[%clk 0:02:56.6]} 5. c3 {[%clk 0:03:03.2]} 5... Nc6
{[%clk 0:02:57.5]} 6. Ngf3 {[%clk 0:03:02.6]} 6... Be7 {[%clk 0:02:58.6]} 7. h3
{[%clk 0:03:00.7]} 7... O-O {[%clk 0:02:59.4]} 8. Bd3 {[%clk 0:03:01.1]} 8... b6
{[%clk 0:02:56.4]} 9. O-O {[%clk 0:02:33.6]} 9... Bb7 {[%clk 0:02:51.9]} 10. Qb1
{[%clk 0:02:30.1]} 10... Bd6 {[%clk 0:02:49.2]} 11. Ne5 {[%clk 0:02:25.7]} 11...
Qc7 {[%clk 0:02:25.6]} 12. Ndf3 {[%clk 0:02:19.3]} 12... Ne4 {[%clk 0:02:23.1]}
13. Re1 {[%clk 0:01:32]} 13... Nd8 {[%clk 0:02:20.8]} 14. Bh2 {[%clk 0:01:19.4]}
14... f6 {[%clk 0:02:17.5]} 15. Ng4 {[%clk 0:01:19.6]} 15... Nf7 {[%clk
0:02:17.9]} 16. c4 {[%clk 0:01:06.1]} 16... h5 {[%clk 0:02:14.7]} 17. Bxd6
{[%clk 0:01:05.6]} 17... Nfxd6 {[%clk 0:02:15.4]} 18. Ngh2 {[%clk 0:01:03.2]}
18... dxc4 {[%clk 0:02:11.2]} 19. Bc2 {[%clk 0:01:02.9]} 19... Rfe8 {[%clk
0:02:07.5]} 20. Nf1 {[%clk 0:00:53.5]} 20... Rad8 {[%clk 0:02:05.3]} 21. N1d2
{[%clk 0:00:52]} 21... Nxd2 {[%clk 0:02:02.1]} 22. Nxd2 {[%clk 0:00:52.6]} 22...
cxd4 {[%clk 0:02:03.3]} 23. exd4 {[%clk 0:00:53.3]} 23... Nf7 {[%clk 0:02:00.5]}
24. Bh7+ {[%clk 0:00:49.5]} 24... Kf8 {[%clk 0:02:01.3]} 25. Nf1 {[%clk
0:00:39.8]} 25... Ng5 {[%clk 0:01:58]} 26. Bg6 {[%clk 0:00:39.7]} 26... Rxd4
{[%clk 0:01:53.4]} 27. Bxe8 {[%clk 0:00:38.7]} 27... Bxg2 {[%clk 0:01:46.9]} 28.
Nh2 {[%clk 0:00:20.4]} 28... Bf3 {[%clk 0:01:43.4]} 29. Nxf3 {[%clk 0:00:18.9]}
29... Nxf3+ {[%clk 0:01:39.1]} 30. Kg2 {[%clk 0:00:20.4]} 30... Qh2+ {[%clk
0:01:34.8]} 31. Kxf3 {[%clk 0:00:21.1]} 31... Rf4+ {[%clk 0:01:35.3]} 32. Ke2
{[%clk 0:00:22]} 32... Rxf2+ {[%clk 0:01:22.8]} 33. Kd1 {[%clk 0:00:20.8]} 33...
Qd6+ {[%clk 0:01:24]} 34. Kc1 {[%clk 0:00:17.8]} 34... Qd2# {[%clk 0:01:23.6]}
0-1

[Event "*** Titled Tuesday Blitz"]
[Site "Chess.com"]
[Date "2018.06.05"]
[Round "2"]
[White "MyleneFarmer"]
[Black "kleinebeer98"]
[Result "0-1"]
[WhiteElo "2385"]
[BlackElo "2463"]
[TimeControl "180+2"]
[EndTime "13:23:34 PDT"]
[Termination "kleinebeer98 won on time"]

1. d4 {[%clk 0:03:01.9]} 1... Nf6 {[%clk 0:03:00.2]} 2. Nf3 {[%clk 0:03:02.6]}
2... e6 {[%clk 0:03:01.3]} 3. c4 {[%clk 0:03:03]} 3... b6 {[%clk 0:03:02.5]} 4.
g3 {[%clk 0:03:03.5]} 4... Bb7 {[%clk 0:03:03.6]} 5. Bg2 {[%clk 0:03:04.7]} 5...
Be7 {[%clk 0:03:05.1]} 6. O-O {[%clk 0:03:04.5]} 6... O-O {[%clk 0:03:06.6]} 7.
d5 {[%clk 0:02:59.2]} 7... exd5 {[%clk 0:03:06.5]} 8. Nh4 {[%clk 0:03:00.1]}
8... c6 {[%clk 0:03:03.4]} 9. cxd5 {[%clk 0:02:59.5]} 9... Nxd5 {[%clk
0:03:04.9]} 10. Nf5 {[%clk 0:03:00.7]} 10... Re8 {[%clk 0:03:03.2]} 11. e4
{[%clk 0:02:58.7]} 11... Nc7 {[%clk 0:02:57.8]} 12. Nc3 {[%clk 0:02:34.4]} 12...
Nba6 {[%clk 0:02:44.3]} 13. Bf4 {[%clk 0:02:26.4]} 13... Nc5 {[%clk 0:02:28.2]}
14. Nxe7+ {[%clk 0:02:19.9]} 14... Rxe7 {[%clk 0:02:28.8]} 15. Bd6 {[%clk
0:02:17.7]} 15... Re6 {[%clk 0:02:23.3]} 16. Qd2 {[%clk 0:02:01.6]} 16... Ne8
{[%clk 0:02:09.1]} 17. Bxc5 {[%clk 0:01:25.4]} 17... bxc5 {[%clk 0:02:11]} 18.
Na4 {[%clk 0:01:25.8]} 18... d6 {[%clk 0:02:07.2]} 19. Rfd1 {[%clk 0:01:25.1]}
19... Qe7 {[%clk 0:02:02.5]} 20. f3 {[%clk 0:01:06.5]} 20... d5 {[%clk
0:01:54.7]} 21. Qc3 {[%clk 0:00:59]} 21... c4 {[%clk 0:01:52.1]} 22. b3 {[%clk
0:00:58.8]} 22... Nf6 {[%clk 0:01:47.1]} 23. bxc4 {[%clk 0:00:52.2]} 23... dxe4
{[%clk 0:01:47.8]} 24. fxe4 {[%clk 0:00:49]} 24... Nxe4 {[%clk 0:01:44.1]} 25.
Bxe4 {[%clk 0:00:46.6]} 25... Rxe4 {[%clk 0:01:46]} 26. Rab1 {[%clk 0:00:42.8]}
26... Re8 {[%clk 0:01:35.1]} 27. c5 {[%clk 0:00:27.8]} 27... Rxa4 {[%clk
0:01:35.2]} 28. Qf3 {[%clk 0:00:22.2]} 28... Rxa2 {[%clk 0:01:33.2]} 29. Rf1
{[%clk 0:00:20.8]} 29... Ba6 {[%clk 0:01:30.8]} 30. Rbe1 {[%clk 0:00:21]} 30...
Qxc5+ {[%clk 0:01:30.5]} 31. Kh1 {[%clk 0:00:21.6]} 31... Rf8 {[%clk 0:01:08.2]}
32. Rg1 {[%clk 0:00:09]} 32... Bc4 {[%clk 0:01:08.5]} 0-1

[Event "*** Titled Tuesday Blitz"]
[Site "Chess.com"]
[Date "2018.06.05"]
[Round "2"]
[White "gmjlh"]
[Black "timator"]
[Result "1-0"]
[WhiteElo "2617"]
[BlackElo "2347"]
[TimeControl "180+2"]
[EndTime "13:23:35 PDT"]
[Termination "gmjlh won by resignation"]

1. e4 {[%clk 0:03:01.9]} 1... c5 {[%clk 0:03:00.9]} 2. Nf3 {[%clk 0:03:02.1]}
2... Nc6 {[%clk 0:03:01.1]} 3. g3 {[%clk 0:03:00.1]} 3... g6 {[%clk 0:02:56.6]}
4. Bg2 {[%clk 0:02:58.3]} 4... Bg7 {[%clk 0:02:57.9]} 5. O-O {[%clk 0:02:58.9]}
5... e6 {[%clk 0:02:59.4]} 6. c3 {[%clk 0:02:58]} 6... Nge7 {[%clk 0:02:59.2]}
7. d4 {[%clk 0:02:58.6]} 7... cxd4 {[%clk 0:03:00.6]} 8. cxd4 {[%clk 0:03:00.5]}
8... d5 {[%clk 0:03:01.6]} 9. e5 {[%clk 0:03:01.4]} 9... O-O {[%clk 0:03:02.1]}
10. Nc3 {[%clk 0:03:01]} 10... b6 {[%clk 0:03:00.9]} 11. Re1 {[%clk 0:02:59.6]}
11... Bb7 {[%clk 0:02:56.6]} 12. g4 {[%clk 0:02:52]} 12... a6 {[%clk 0:02:52.9]}
13. g5 {[%clk 0:02:16.4]} 13... Nf5 {[%clk 0:02:47.1]} 14. h4 {[%clk 0:02:14.1]}
14... b5 {[%clk 0:02:43.8]} 15. h5 {[%clk 0:02:12.5]} 15... Re8 {[%clk 0:02:43]}
16. h6 {[%clk 0:02:10]} 16... Bf8 {[%clk 0:02:43.7]} 17. Ne2 {[%clk 0:02:09.5]}
17... Qb6 {[%clk 0:02:20.1]} 18. Be3 {[%clk 0:01:55.3]} 18... Rac8 {[%clk
0:01:59.2]} 19. Ng3 {[%clk 0:01:29.2]} 19... Nxg3 {[%clk 0:01:41.9]} 20. fxg3
{[%clk 0:01:29.5]} 20... Nb4 {[%clk 0:01:29.9]} 21. Re2 {[%clk 0:01:30.2]} 21...
Rc7 {[%clk 0:01:22.1]} 22. Nh2 {[%clk 0:00:59.4]} 22... Rec8 {[%clk 0:01:19.9]}
23. Ng4 {[%clk 0:00:59.3]} 23... Be7 {[%clk 0:01:20.8]} 24. Qf1 {[%clk
0:00:58.6]} 24... Nc2 {[%clk 0:00:58.2]} 25. Nf6+ {[%clk 0:00:50]} 25... Kh8
{[%clk 0:00:59.2]} 26. Rxc2 {[%clk 0:00:40.7]} 26... Rxc2 {[%clk 0:00:46.5]} 27.
Nd7 {[%clk 0:00:38.1]} 27... Qd8 {[%clk 0:00:20.6]} 28. Qxf7 {[%clk 0:00:37.5]}
28... Bf8 {[%clk 0:00:21.9]} 29. Nf6 {[%clk 0:00:36.9]} 1-0

[Event "*** Titled Tuesday Blitz"]
[Site "Chess.com"]
[Date "2018.06.05"]
[Round "2"]
[White "amiralfio"]
[Black "fidetrainerNET"]
[Result "1-0"]
[WhiteElo "2268"]
[BlackElo "2129"]
[TimeControl "180+2"]
[EndTime "13:23:38 PDT"]
[Termination "amiralfio won by resignation"]

1. d4 {[%clk 0:03:01.9]} 1... c5 {[%clk 0:03:00.3]} 2. dxc5 {[%clk 0:03:00.9]}
2... e5 {[%clk 0:03:02.2]} 3. e4 {[%clk 0:02:57.5]} 3... Bxc5 {[%clk 0:03:00.4]}
4. Nf3 {[%clk 0:02:53.3]} 4... Nc6 {[%clk 0:03:00.9]} 5. Bc4 {[%clk 0:02:50.2]}
5... Nf6 {[%clk 0:02:51.1]} 6. O-O {[%clk 0:02:47.6]} 6... O-O {[%clk
0:02:47.9]} 7. Nc3 {[%clk 0:02:48.4]} 7... h6 {[%clk 0:02:45.2]} 8. h3 {[%clk
0:02:35.5]} 8... a6 {[%clk 0:02:41.5]} 9. a3 {[%clk 0:02:23.3]} 9... b5 {[%clk
0:02:39.8]} 10. Bd5 {[%clk 0:02:08]} 10... Bb7 {[%clk 0:02:34.4]} 11. b4 {[%clk
0:02:07.3]} 11... Bb6 {[%clk 0:02:31.1]} 12. Bb2 {[%clk 0:02:07.9]} 12... Nxd5
{[%clk 0:02:27]} 13. exd5 {[%clk 0:02:00.8]} 13... Nd4 {[%clk 0:02:25.2]} 14.
Nxe5 {[%clk 0:01:53.9]} 14... Rc8 {[%clk 0:02:23.3]} 15. Nf3 {[%clk 0:01:50]}
15... Nf5 {[%clk 0:02:13.5]} 16. Qd3 {[%clk 0:01:47.8]} 16... Qf6 {[%clk
0:02:12.6]} 17. Rab1 {[%clk 0:01:44.5]} 17... Qg6 {[%clk 0:02:10.5]} 18. Ne5
{[%clk 0:01:39.4]} 18... Qg5 {[%clk 0:02:03.4]} 19. Ne4 {[%clk 0:01:24.7]} 19...
Qh4 {[%clk 0:01:52.4]} 20. Nxd7 {[%clk 0:01:20.7]} 20... Ba7 {[%clk 0:01:36.1]}
21. Nxf8 {[%clk 0:01:18.4]} 21... Kxf8 {[%clk 0:01:30.8]} 22. Rbe1 {[%clk
0:01:10]} 22... Rd8 {[%clk 0:01:28.4]} 23. d6 {[%clk 0:00:38.1]} 23... Qf4
{[%clk 0:01:22.3]} 24. Nc5 {[%clk 0:00:32.7]} 24... Rxd6 {[%clk 0:01:09.6]} 25.
Nd7+ {[%clk 0:00:22.5]} 25... Kg8 {[%clk 0:01:02.4]} 26. Re8+ {[%clk 0:00:21.1]}
26... Kh7 {[%clk 0:01:01.7]} 27. Nf8+ {[%clk 0:00:20.6]} 27... Kg8 {[%clk
0:01:01.8]} 28. Ng6+ {[%clk 0:00:17.2]} 28... Kh7 {[%clk 0:01:02.3]} 29. Nxf4
{[%clk 0:00:10.3]} 29... Rxd3 {[%clk 0:01:02.4]} 30. Nxd3 {[%clk 0:00:12.2]}
30... Nd4 {[%clk 0:01:02.4]} 31. Bxd4 {[%clk 0:00:12.5]} 31... Bxd4 {[%clk
0:01:02.7]} 32. Rfe1 {[%clk 0:00:12.7]} 32... Bd5 {[%clk 0:01:03]} 33. Rd8
{[%clk 0:00:13.1]} 33... Bc3 {[%clk 0:01:02.3]} 34. Rxd5 {[%clk 0:00:13]} 34...
Bxe1 {[%clk 0:01:02.8]} 35. Nxe1 {[%clk 0:00:14.9]} 1-0